[Event "106th British-ch Major 2019"]
[Site "Torquay"]
[Date "2019.07.27"]
[Round "1.29"]
[White "Gardiner, Eric D"]
[Black "Metcalfe, Charlie P"]
[Result "0-1"]
[ECO "C02"]
[WhiteElo "1957"]
[BlackElo "1739"]
[Annotator "NA"]
[PlyCount "76"]
[EventDate "2019.07.27"]
[EventType "swiss"]
[EventCountry "GBR"]
[SourceTitle "playchess.com"]
[Source "ChessBase"]
[SourceQuality "1"]
[TimeControl "40/5400+30:1800+30"]

1. e4 {[%emt 0:00:00]} e6 {[%emt 0:00:00]} 2. d4 {[%emt 0:00:00]} d5 {[%emt 0:00:00]} 3. e5 {[%emt 0:00:02]} c5 {[%emt 0:00:00]} 4. c3 {[%emt 0:00:16]} Nc6 {[%emt 0:00:00]} 5. Nf3 {[%emt 0:00:13]} Qb6 {[%emt 0:00:00]} 6. Bd3 {[%emt 0:00:16]} cxd4 {[%emt 0:00:00]} 7. cxd4 {[%emt 0:00:13]} Bd7 {[%emt 0:00:00]} 8. O-O {[%emt 0:00:20]} Nxd4 {[%emt 0:00:00]} 9. Nbd2 {[%emt 0:00:17]} Rc8 {[%emt 0:13:57]} 10. Nxd4 {[%emt 0:01:53]} Qxd4 {[%emt 0:00:02]} 11. Nf3 {[%emt 0:01:23]} Qb6 {[%emt 0:00:19]} 12. Qe2 {[%emt 0:14:50]} Bc5 {[%emt 0:01:38]} 13. a3 {[%emt 0:11:33]} a5 {[%emt 0:01:39]} 14. b4 {[%emt 0:02:10]} axb4 {[%emt 0:02:31]} 15. axb4 {[%emt 0:00:30]} Bxb4 {[%emt 0:07:04]} 16. Be3 {[%emt 0:00:44]} Bc5 {[%emt 0:02:54]} 17. Rfb1 {[%emt 0:01:15]} Qc7 {[%emt 0:02:49]} 18. Bxc5 {[%emt 0:01:12]} Qxc5 {[%emt 0:00:02]} 19. Rxb7 {[%emt 0:01:03]} Bc6 {[%emt 0:06:36]} 20. Rbb1 {[%emt 0:01:44]} Ne7 {[%emt 0:11:48]} 21. Rc1 {[%emt 0:08:57]} Qb6 {[%emt 0:02:27]} 22. Rab1 {[%emt 0:08:59]} Qa7 {[%emt 0:02:31]} 23. h4 {[%emt 0:02:41]} O-O {[%emt 0:14:21]} 24. Bxh7+ {[%emt 0:23:01]} Kxh7 {[%emt 0:03:27]} 25. Ng5+ {[%emt 0:00:07]} Kg6 {[%emt 0:00:36]} 26. Qd3+ {[%emt 0:04:27]} f5 {[%emt 0:08:41]} 27. exf6+ {[%emt 0:00:31]} Kxf6 {[%emt 0:00:02]} 28. Qf3+ {[%emt 0:07:10]} Kg6 {[%emt 0:01:44]} 29. Qd3+ {[%emt 0:00:06]} Rf5 {[%emt 0:02:37]} 30. g4 {[%emt 0:00:24]} Qxf2+ {[%emt 0:00:09]} 31. Kh1 {[%emt 0:00:04]} Qxh4+ {[%emt 0:02:05]} 32. Nh3 {[%emt 0:01:41]} d4+ {[%emt 0:09:04]} 33. Rxc6 {[%emt 0:00:40]} Nxc6 {[%emt 0:00:37]} 34. gxf5+ {[%emt 0:00:15]} exf5 {[%emt 0:00:11]} 35. Rg1+ {[%emt 0:00:30]} Kf6 {[%emt 0:00:23]} 36. Rf1 {[%emt 0:00:40]} Qh5 {[%emt 0:01:14]} 37. Kg2 {[%emt 0:03:27]} Re8 {[%emt 0:01:46]} 38. Qb5 {[%emt 0:01:37]} Qe2+ {[%emt 0:00:00] Qc4 Qd3 Qxd3 Re2+} 0-1

[Event "106th British-ch Major 2019"]
[Site "Torquay"]
[Date "2019.07.27"]
[Round "1.30"]
[White "Rushbrooke, Tibo"]
[Black "Brown, Tom"]
[Result "0-1"]
[ECO "B17"]
[WhiteElo "1700"]
[BlackElo "1953"]
[Annotator "NA"]
[PlyCount "62"]
[EventDate "2019.07.27"]
[EventType "swiss"]
[EventCountry "GBR"]
[SourceTitle "playchess.com"]
[Source "ChessBase"]
[SourceQuality "1"]
[TimeControl "40/5400+30:1800+30"]

1. e4 {[%emt 0:00:00]} c6 {[%emt 0:00:00]} 2. d4 {[%emt 0:00:00]} d5 {[%emt 0:00:00]} 3. Nc3 {[%emt 0:00:09]} dxe4 {[%emt 0:00:02]} 4. Nxe4 {[%emt 0:00:04]} Nd7 {[%emt 0:00:21]} 5. Ng5 {[%emt 0:00:09]} Ngf6 {[%emt 0:00:06]} 6. Bc4 {[%emt 0:00:16]} e6 {[%emt 0:00:32]} 7. Qe2 {[%emt 0:00:08]} Nb6 {[%emt 0:00:34]} 8. Bd3 {[%emt 0:00:09]} h6 {[%emt 0:03:19]} 9. N5f3 {[%emt 0:00:12]} c5 {[%emt 0:01:50]} 10. dxc5 {[%emt 0:00:40]} Bxc5 {[%emt 0:01:07]} 11. Ne5 {[%emt 0:03:04]} Qc7 {[%emt 0:04:56]} 12. Ngf3 {[%emt 0:03:19]} a6 {[%emt 0:04:48]} 13. O-O {[%emt 0:04:51]} O-O {[%emt 0:03:23]} 14. h3 {[%emt 0:10:11]} Nbd7 {[%emt 0:03:57]} 15. Ng4 {[%emt 0:11:32]} Bd6 {[%emt 0:06:33]} 16. Nxf6+ {[%emt 0:07:46]} Nxf6 {[%emt 0:00:25]} 17. b3 {[%emt 0:01:46]} Nd5 {[%emt 0:10:53]} 18. Qe4 {[%emt 0:06:01]} f5 {[%emt 0:02:06]} 19. Qd4 {[%emt 0:07:41]} Bc5 {[%emt 0:07:49]} 20. Qh4 {[%emt 0:00:49]} Be7 {[%emt 0:01:22]} 21. Qh5 {[%emt 0:13:58]} Bf6 {[%emt 0:03:30]} 22. c3 {[%emt 0:04:29]} Bd7 {[%emt 0:04:59]} 23. Nd4 {[%emt 0:04:57]} Qxc3 {[%emt 0:03:06]} 24. Ba3 {[%emt 0:00:11]} Qxd4 {[%emt 0:08:43]} 25. Bxf8 {[%emt 0:00:09]} Rxf8 {[%emt 0:00:47]} 26. Rad1 {[%emt 0:00:43]} Nf4 {[%emt 0:01:55]} 27. Qf3 {[%emt 0:00:22]} Bc6 {[%emt 0:02:50]} 28. Qg3 {[%emt 0:00:05]} Bh4 {[%emt 0:02:31]} 29. Qe3 {[%emt 0:00:33]} Qxe3 {[%emt 0:01:54]} 30. fxe3 {[%emt 0:00:05]} Nxd3 {[%emt 0:00:30]} 31. Rxd3 {[%emt 0:00:14]} Bb5 {[%emt 0:00:13]} 0-1

[Event "106th British-ch Major 2019"]
[Site "Torquay"]
[Date "2019.07.27"]
[Round "1.31"]
[White "Fathallah, Joe"]
[Black "Sheikh, Anum"]
[Result "1/2-1/2"]
[ECO "A01"]
[WhiteElo "1952"]
[BlackElo "1693"]
[Annotator "NA RC"]
[PlyCount "217"]
[EventDate "2019.07.27"]
[EventType "swiss"]
[EventCountry "GBR"]
[SourceTitle "playchess.com"]
[Source "ChessBase"]
[SourceQuality "1"]
[TimeControl "40/5400+30:1800+30"]

1. b3 {[%emt 0:00:00]} Nf6 {[%emt 0:00:00]} 2. Bb2 {[%emt 0:00:00]} d6 {[%emt 0:00:00]} 3. e3 {[%emt 0:00:31]} e5 {[%emt 0:00:41]} 4. c4 {[%emt 0:01:05]} Be7 {[%emt 0:00:45]} 5. Nf3 {[%emt 0:00:30]} O-O {[%emt 0:02:02]} 6. Be2 {[%emt 0:00:38]} c5 {[%emt 0:03:00]} 7. d3 {[%emt 0:01:42]} Nc6 {[%emt 0:00:41]} 8. Nc3 {[%emt 0:01:16]} h6 {[%emt 0:03:44]} 9. O-O {[%emt 0:02:57]} Be6 {[%emt 0:02:40]} 10. d4 {[%emt 0:02:30]} exd4 {[%emt 0:08:11]} 11. exd4 {[%emt 0:00:13]} d5 {[%emt 0:01:03]} 12. cxd5 {[%emt 0:05:29]} Nxd5 {[%emt 0:00:21]} 13. Ne4 {[%emt 0:02:20]} cxd4 {[%emt 0:16:12]} 14. Nxd4 {[%emt 0:01:25]} Nxd4 {[%emt 0:03:19]} 15. Qxd4 {[%emt 0:02:51]} Nf6 {[%emt 0:00:23]} 16. Qe5 {[%emt 0:06:19]} Qd5 {[%emt 0:01:10]} 17. Bf3 {[%emt 0:03:44]} Qxe5 {[%emt 0:04:31]} 18. Bxe5 {[%emt 0:00:08]} Nd5 {[%emt 0:00:19]} 19. Rfd1 {[%emt 0:09:18]} Rfd8 {[%emt 0:02:05]} 20. Ng3 {[%emt 0:06:15]} Rac8 {[%emt 0:03:24]} 21. Rac1 {[%emt 0:03:59]} Rxc1 {[%emt 0:07:25]} 22. Rxc1 {[%emt 0:00:10]} Ba3 {[%emt 0:06:27]} 23. Rd1 {[%emt 0:01:16]} Be7 {[%emt 0:00:26]} 24. Ne2 {[%emt 0:03:50]} Nb4 {[%emt 0:02:21]} 25. Rxd8+ {[%emt 0:01:35]} Bxd8 {[%emt 0:02:29]} 26. Bxb7 {[%emt 0:01:33]} Nxa2 {[%emt 0:00:34]} 27. Nd4 {[%emt 0:00:44]} Nc1 {[%emt 0:03:10]} 28. Nxe6 {[%emt 0:11:15]} fxe6 {[%emt 0:03:46]} 29. b4 {[%emt 0:02:58]} Nd3 {[%emt 0:01:10]} 30. Bd4 {[%emt 0:04:33]} Nxb4 {[%emt 0:00:24]} 31. Bxa7 {[%emt 0:00:39]} Kf7 {[%emt 0:00:26]} 32. Kf1 {[%emt 0:01:18]} Bf6 {[%emt 0:01:05]} 33. Ke2 {[%emt 0:00:33]} Nd5 {[%emt 0:00:49]} 34. Kd3 {[%emt 0:01:25]} Ke7 {[%emt 0:00:25]} 35. Bc5+ {[%emt 0:05:06]} Kd7 {[%emt 0:01:47]} 36. g3 {[%emt 0:01:38]} Kc7 {[%emt 0:01:03]} 37. Bxd5 {[%emt 0:02:57]} exd5 {[%emt 0:00:08]} 38. Bd4 {[%emt 0:00:41]} Bxd4 {[%emt 0:00:31]} 39. Kxd4 {[%emt 0:00:03]} Kd6 {[%emt 0:00:09]} 40. f4 {[%emt 0:01:14]} g6 {[%emt 0:01:10]} 41. g4 {[%emt 0:34:46]} Ke6 {[%emt 0:36:35]} 42. Kc5 {[%emt 0:03:17]} g5 {[%emt 0:00:07]} 43. f5+ {[%emt 0:00:40]} Ke5 {[%emt 0:00:06]} 44. Kb4 {[%emt 0:02:58]} h5 {[%emt 0:01:56]} 45. h3 {[%emt 0:00:09]} hxg4 {[%emt 0:01:02]} 46. hxg4 {[%emt 0:00:07]} Kd6 {[%emt 0:00:54]} 47. Kc3 {[%emt 0:00:43]} Kc5 {[%emt 0:01:42]} 48. Kb3 {[%emt 0:03:31]} d4 {[%emt 0:00:00]} 49. Ka3 {[%emt 0:00:00]} Kc6 {[%emt 0:00:00]} 50. Ka4 {[%emt 0:00:00]} Kc5 {[%emt 0:00:00]} 51. Kb3 {[%emt 0:00:00]} Kd5 {[%emt 0:00:00]} 52. Kb4 {[%emt 0:00:00]} Ke4 {[%emt 0:00:00]} 53. f6 {[%emt 0:00:00]} d3 {[%emt 0:00:00]} 54. f7 {[%emt 0:00:00]} d2 {[%emt 0:00:00]} 55. f8=Q {[%emt 0:00:05]} d1=Q {[%emt 0:00:00]} 56. Qf5+ {[%emt 0:00:00]} Ke3 {[%emt 0:00:00]} 57. Qxg5+ {[%emt 0:00:00]} Kf2 {[%emt 0:00:00]} 58. Qf4+ {[%emt 0:00:00]} Kg2 {[%emt 0:00:00]} 59. g5 {[%emt 0:00:00]} Qb1+ {[%emt 0:00:00]} 60. Kc5 {[%emt 0:00:00]} Kh1 {[%emt 0:00:00]} 61. Qf6 {[%emt 0:00:00]} Qa2 {[%emt 0:00:00]} 62. Kd6 {[%emt 0:00:00]} Qa6+ {[%emt 0:00:00]} 63. Ke7 {[%emt 0:00:00]} Qb7+ {[%emt 0:00:00]} 64. Kf8 {[%emt 0:00:00]} Qc8+ {[%emt 0:00:00]} 65. Kg7 {[%emt 0:00:00]} Qd7+ {[%emt 0:00:00]} 66. Kh8 {[%emt 0:00:00]} Qe8+ {[%emt 0:00:00]} 67. Kh7 {[%emt 0:00:00]} Qd7+ {[%emt 0:00:00]} 68. Qg7 {[%emt 0:00:00]} Qf5+ {[%emt 0:00:00]} 69. g6 {[%emt 0:00:00]} Qc8 {[%emt 0:00:00]} 70. Qh6+ {[%emt 0:00:00]} Kg1 {[%emt 0:00:00]} 71. g7 {[%emt 0:00:00]} Qd7 {[%emt 0:00:00]} 72. Qg6+ {[%emt 0:00:00]} Kh1 {[%emt 0:00:00]} 73. Kh8 {[%emt 0:00:00]} Qd4 {[%emt 0:00:00]} 74. Qf7 {[%emt 0:00:00]} Qh4+ {[%emt 0:00:00]} 75. Kg8 {[%emt 0:00:00]} Qd8+ {[%emt 0:00:00]} 76. Kh7 {[%emt 0:00:00]} Qh4+ {[%emt 0:00:00]} 77. Kg6 {[%emt 0:00:00]} Qg3+ {[%emt 0:00:39]} 78. Kf6 {[%emt 0:00:00]} Qf4+ {[%emt 0:01:38]} 79. Ke7 {[%emt 0:00:21]} Qc7+ {[%emt 0:00:15]} 80. Kf8 {[%emt 0:01:22]} Qd8+ {[%emt 0:00:37]} 81. Qe8 {[%emt 0:00:08]} Qd6+ {[%emt 0:00:40]} 82. Kf7 {[%emt 0:01:25]} Qf4+ {[%emt 0:00:46]} 83. Kg8 {[%emt 0:02:32]} Qc4+ {[%emt 0:00:18]} 84. Kf8 {[%emt 0:01:13]} Qf4+ {[%emt 0:00:30]} 85. Qf7 {[%emt 0:00:50]} Qb8+ {[%emt 0:00:07]} 86. Ke7 {[%emt 0:00:14]} Qc7+ {[%emt 0:00:38]} 87. Kf6 {[%emt 0:00:55]} Qf4+ {[%emt 0:00:08]} 88. Kg6 {[%emt 0:00:14]} Qg3+ {[%emt 0:00:36]} 89. Kh6 {[%emt 0:00:33]} Qe3+ {[%emt 0:00:31]} 90. Kh7 {[%emt 0:02:22]} Qh3+ {[%emt 0:00:27]} 91. Kg8 {[%emt 0:00:19]} Qc8+ {[%emt 0:00:11]} 92. Qf8 {[%emt 0:00:04]} Qc4+ {[%emt 0:00:22]} 93. Kh7 {[%emt 0:00:32]} Qh4+ {[%emt 0:00:15]} 94. Kg6 {[%emt 0:00:18]} Qg3+ {[%emt 0:00:26]} 95. Kf6 {[%emt 0:00:27]} Qf4+ {[%emt 0:00:26]} 96. Ke6 {[%emt 0:00:27]} Qe4+ {[%emt 0:00:26]} 97. Kd6 {[%emt 0:00:17]} Qd4+ {[%emt 0:00:44]} 98. Kc6 {[%emt 0:00:14]} Qe4+ {[%emt 0:00:33]} 99. Kb6 {[%emt 0:00:18]} Qe6+ {[%emt 0:01:02]} 100. Kc7 {[%emt 0:00:46]} Qc4+ {[%emt 0:00:22]} 101. Kd8 {[%emt 0:00:40]} Qd4+ {[%emt 0:00:16]} 102. Ke8 {[%emt 0:00:21]} Qa4+ {[%emt 0:00:14]} 103. Ke7 {[%emt 0:01:03]} Qe4+ {[%emt 0:00:18]} 104. Kd7 {[%emt 0:00:12]} Qa4+ {[%emt 0:00:08]} 105. Kc7 {[%emt 0:00:09]} Qc4+ {[%emt 0:00:12]} 106. Kb6 {[%emt 0:00:15]} Qd4+ {[%emt 0:00:16]} 107. Kb5 {[%emt 0:00:22]} Qb2+ {[%emt 0:00:10]} 108. Ka4 {[%emt 0:00:32]} Qa1+ {[%emt 0:00:22]} 109. Kb3 {[%emt 0:00:36]} 1/2-1/2

[Event "106th British-ch Major 2019"]
[Site "Torquay"]
[Date "2019.07.27"]
[Round "1.32"]
[White "Pattni, Kishan"]
[Black "Barton, R Alan"]
[Result "0-1"]
[ECO "A85"]
[WhiteElo "1608"]
[BlackElo "1941"]
[Annotator "NA"]
[PlyCount "42"]
[EventDate "2019.07.27"]
[EventType "swiss"]
[EventCountry "GBR"]
[SourceTitle "playchess.com"]
[Source "ChessBase"]
[SourceQuality "1"]
[TimeControl "40/5400+30:1800+30"]

1. d4 {[%emt 0:41:29]} e6 {[%emt 0:01:04]} 2. c4 {[%emt 0:00:35]} f5 {[%emt 0:03:01]} 3. Nc3 {[%emt 0:00:12]} Nf6 {[%emt 0:00:17]} 4. Bg5 {[%emt 0:01:20]} Be7 {[%emt 0:01:08]} 5. Qc2 {[%emt 0:00:53]} b6 {[%emt 0:05:28]} 6. O-O-O {[%emt 0:01:45]} Bb7 {[%emt 0:00:36]} 7. f3 {[%emt 0:00:32]} O-O {[%emt 0:02:21]} 8. e4 {[%emt 0:00:59]} fxe4 {[%emt 0:00:46]} 9. fxe4 {[%emt 0:00:36]} Ng4 {[%emt 0:02:56]} 10. Bxe7 {[%emt 0:02:13]} Qxe7 {[%emt 0:00:04]} 11. Nf3 {[%emt 0:02:20]} Ne3 {[%emt 0:01:58]} 12. Qb1 {[%emt 0:00:29]} Nxd1 {[%emt 0:01:56]} 13. Kxd1 {[%emt 0:00:04]} d6 {[%emt 0:04:41]} 14. h4 {[%emt 0:00:47]} e5 {[%emt 0:07:37]} 15. d5 {[%emt 0:00:57]} Nd7 {[%emt 0:01:43]} 16. Be2 {[%emt 0:04:17]} Nf6 {[%emt 0:05:41]} 17. Ng5 {[%emt 0:02:41]} Bc8 {[%emt 0:00:38]} 18. Kd2 {[%emt 0:01:35]} h6 {[%emt 0:03:43]} 19. Qd1 {[%emt 0:00:56]} hxg5 {[%emt 0:04:54]} 20. hxg5 {[%emt 0:00:07]} Ng4 {[%emt 0:03:27]} 21. Rh5 {[%emt 0:02:22]} g6 {[%emt 0:04:23]} 0-1

[Event "106th British-ch Major 2019"]
[Site "Torquay"]
[Date "2019.07.27"]
[Round "1.33"]
[White "Cowan, Richard M"]
[Black "Renshaw, Lucas"]
[Result "0-1"]
[ECO "A30"]
[WhiteElo "1931"]
[BlackElo "1596"]
[Annotator "NA RC"]
[PlyCount "178"]
[EventDate "2019.07.27"]
[EventType "swiss"]
[EventCountry "GBR"]
[SourceTitle "playchess.com"]
[Source "ChessBase"]
[SourceQuality "1"]
[TimeControl "40/5400+30:1800+30"]

1. Nf3 {[%emt 0:00:00]} Nf6 {[%emt 0:00:19]} 2. c4 {[%emt 0:00:00]} e6 {[%emt 0:00:54]} 3. g3 {[%emt 0:00:15]} d5 {[%emt 0:00:15]} 4. Bg2 {[%emt 0:00:44]} c5 {[%emt 0:00:21]} 5. O-O {[%emt 0:01:33]} Nc6 {[%emt 0:01:13]} 6. e3 {[%emt 0:02:20]} Bd6 {[%emt 0:02:02]} 7. b3 {[%emt 0:06:15]} d4 {[%emt 0:04:15]} 8. exd4 {[%emt 0:13:21]} cxd4 {[%emt 0:01:20]} 9. Bb2 {[%emt 0:00:17]} e5 {[%emt 0:08:10]} 10. d3 {[%emt 0:02:36]} Bf5 {[%emt 0:05:08]} 11. Re1 {[%emt 0:04:47]} O-O {[%emt 0:02:55]} 12. c5 {[%emt 0:09:14]} Bc7 {[%emt 0:18:15]} 13. Na3 {[%emt 0:03:14]} Be6 {[%emt 0:07:21]} 14. Rc1 {[%emt 0:05:24]} Nd7 {[%emt 0:05:58]} 15. Nb5 {[%emt 0:02:14]} Bd5 {[%emt 0:02:48]} 16. Nxc7 {[%emt 0:05:16]} Qxc7 {[%emt 0:00:20]} 17. Nxe5 {[%emt 0:00:23]} Bxb3 {[%emt 0:03:39]} 18. Qxb3 {[%emt 0:00:29]} Ndxe5 {[%emt 0:00:17]} 19. h3 {[%emt 0:05:12]} Rfd8 {[%emt 0:03:19]} 20. f4 {[%emt 0:00:41]} Ng6 {[%emt 0:02:54]} 21. Qd1 {[%emt 0:03:45]} Nb4 {[%emt 0:02:47]} 22. Qb3 {[%emt 0:04:30]} Nc6 {[%emt 0:00:11]} 23. a3 {[%emt 0:00:10]} Nge7 {[%emt 0:01:02]} 24. Rc2 {[%emt 0:02:33]} Nf5 {[%emt 0:01:52]} 25. Kh2 {[%emt 0:07:34]} Re8 {[%emt 0:03:49]} 26. Be4 {[%emt 0:00:24]} Re7 {[%emt 0:04:24]} 27. Bc1 {[%emt 0:00:35]} Rae8 {[%emt 0:01:31]} 28. Rce2 {[%emt 0:00:19]} Kf8 {[%emt 0:00:39]} 29. Qd5 {[%emt 0:00:21]} g6 {[%emt 0:02:04]} 30. g4 {[%emt 0:00:58]} Ne3 {[%emt 0:01:05]} 31. Bxe3 {[%emt 0:00:13]} dxe3 {[%emt 0:00:05]} 32. Kg2 {[%emt 0:06:20]} Qxf4 {[%emt 0:02:45]} 33. Rf1 {[%emt 0:00:06]} Qe5 {[%emt 0:00:39]} 34. Qxe5 {[%emt 0:00:06]} Rxe5 {[%emt 0:01:20]} 35. Rxe3 {[%emt 0:00:31]} Rxc5 {[%emt 0:00:14]} 36. Ref3 {[%emt 0:00:05]} Re7 {[%emt 0:02:13]} 37. Rf6 {[%emt 0:02:06]} Kg7 {[%emt 0:02:16]} 38. Kg3 {[%emt 0:01:51]} Rc3 {[%emt 0:00:54]} 39. Kg2 {[%emt 0:02:51]} Rxa3 {[%emt 0:02:45]} 40. Bd5 {[%emt 0:00:24]} Nd8 {[%emt 0:01:58]} 41. Rd6 {[%emt 0:31:43]} Ne6 {[%emt 0:33:15]} 42. Bc4 {[%emt 0:01:24]} a6 {[%emt 0:00:00]} 43. Rb6 {[%emt 0:00:00]} Nc5 {[%emt 0:00:00]} 44. d4 {[%emt 0:00:00]} Ne4 {[%emt 0:00:00]} 45. Bd5 {[%emt 0:00:00]} Ng5 {[%emt 0:00:00]} 46. h4 {[%emt 0:00:00]} Re2+ {[%emt 0:00:00]} 47. Rf2 {[%emt 0:00:00]} Rxf2+ {[%emt 0:00:00]} 48. Kxf2 {[%emt 0:00:00]} Nh3+ {[%emt 0:00:00]} 49. Ke1 {[%emt 0:00:00]} Nf4 {[%emt 0:01:09]} 50. Bxb7 {[%emt 0:00:00]} a5 {[%emt 0:00:36]} 51. d5 {[%emt 0:00:00]} Rd3 {[%emt 0:01:42]} 52. d6 {[%emt 0:00:00]} a4 {[%emt 0:00:29]} 53. Bc8 {[%emt 0:00:00]} a3 {[%emt 0:00:43]} 54. d7 {[%emt 0:00:00]} Kf8 {[%emt 0:00:58]} 55. Rb3 {[%emt 0:00:00]} Ke7 {[%emt 0:01:18]} 56. Rb4 {[%emt 0:01:12]} a2 {[%emt 0:00:40]} 57. Ra4 {[%emt 0:01:49]} Rh3 {[%emt 0:00:37]} 58. Rxa2 {[%emt 0:01:00]} Rh1+ {[%emt 0:00:03]} 59. Kf2 {[%emt 0:00:40]} Rh2+ {[%emt 0:00:01]} 60. Kg3 {[%emt 0:00:05]} Rxa2 {[%emt 0:00:11]} 61. Kxf4 {[%emt 0:00:04]} Ra5 {[%emt 0:00:25]} 62. Kf3 {[%emt 0:01:38]} h6 {[%emt 0:00:27]} 63. Kf4 {[%emt 0:00:28]} f6 {[%emt 0:00:20]} 64. Kf3 {[%emt 0:00:12]} Ra4 {[%emt 0:00:04]} 65. Kg3 {[%emt 0:00:18]} Kd8 {[%emt 0:00:33]} 66. Kf3 {[%emt 0:00:06]} g5 {[%emt 0:00:38]} 67. hxg5 {[%emt 0:00:36]} hxg5 {[%emt 0:00:10]} 68. Kg3 {[%emt 0:00:30]} Ra3+ {[%emt 0:00:07]} 69. Kf2 {[%emt 0:00:29]} Rd3 {[%emt 0:01:03]} 70. Kg2 {[%emt 0:00:23]} Ke7 {[%emt 0:01:02]} 71. Kf2 {[%emt 0:00:10]} Kf7 {[%emt 0:00:31]} 72. Ke2 {[%emt 0:00:47]} Rd6 {[%emt 0:00:28]} 73. Ke3 {[%emt 0:00:14]} Ke7 {[%emt 0:00:41]} 74. Ke4 {[%emt 0:02:54]} Rb6 {[%emt 0:00:19]} 75. Kf5 {[%emt 0:01:47]} Rb5+ {[%emt 0:00:39]} 76. Kg6 {[%emt 0:00:20]} Rd5 {[%emt 0:00:18]} 77. Kg7 {[%emt 0:00:33]} Rd6 {[%emt 0:01:32]} 78. Kg6 {[%emt 0:00:12]} Kd8 {[%emt 0:00:17]} 79. Kf5 {[%emt 0:00:24]} Rd4 {[%emt 0:01:06]} 80. Kxf6 {[%emt 0:03:02]} Rxg4 {[%emt 0:00:06]} 81. Kf5 {[%emt 0:00:04]} Rg1 {[%emt 0:00:15]} 82. Ke4 {[%emt 0:00:23]} Rf1 {[%emt 0:00:08]} 83. Ba6 {[%emt 0:00:28]} Rf4+ {[%emt 0:00:15]} 84. Ke5 {[%emt 0:00:37]} Kxd7 {[%emt 0:00:06]} 85. Bb7 {[%emt 0:00:17]} Ke7 {[%emt 0:00:11]} 86. Bc6 {[%emt 0:00:12]} Rf8 {[%emt 0:00:08]} 87. Bb7 {[%emt 0:00:49]} g4 {[%emt 0:00:05]} 88. Ke4 {[%emt 0:00:23]} g3 {[%emt 0:00:06]} 89. Ke3 {[%emt 0:00:08]} Rf2 {[%emt 0:00:26]} 0-1

[Event "106th British-ch Major 2019"]
[Site "Torquay"]
[Date "2019.07.27"]
[Round "1.34"]
[White "Robertson, Jim"]
[Black "Hosdurga, Chirag"]
[Result "1-0"]
[ECO "A45"]
[WhiteElo "1580"]
[BlackElo "1926"]
[Annotator "NA"]
[PlyCount "93"]
[EventDate "2019.07.27"]
[EventType "swiss"]
[EventCountry "GBR"]
[SourceTitle "playchess.com"]
[Source "ChessBase"]
[SourceQuality "1"]
[TimeControl "40/5400+30:1800+30"]

1. d4 {[%emt 0:00:00]} Nf6 {[%emt 0:00:00]} 2. e3 {[%emt 0:00:00]} c5 {[%emt 0:00:00]} 3. f4 {[%emt 0:00:16]} d5 {[%emt 0:00:11]} 4. c3 {[%emt 0:00:15]} Bf5 {[%emt 0:00:40]} 5. Bd3 {[%emt 0:00:52]} Bxd3 {[%emt 0:00:19]} 6. Qxd3 {[%emt 0:00:00]} Qc8 {[%emt 0:01:51]} 7. Nf3 {[%emt 0:00:52]} e6 {[%emt 0:00:15]} 8. O-O {[%emt 0:01:48]} Be7 {[%emt 0:00:38]} 9. Nbd2 {[%emt 0:03:08]} O-O {[%emt 0:00:29]} 10. b3 {[%emt 0:00:49]} Nc6 {[%emt 0:00:45]} 11. Bb2 {[%emt 0:00:25]} Rd8 {[%emt 0:01:27]} 12. Ne5 {[%emt 0:03:19]} Rb8 {[%emt 0:04:35]} 13. a4 {[%emt 0:02:56]} Ne8 {[%emt 0:08:20]} 14. dxc5 {[%emt 0:11:55]} Bxc5 {[%emt 0:01:17]} 15. b4 {[%emt 0:00:33]} Bf8 {[%emt 0:01:16]} 16. a5 {[%emt 0:00:38]} Nf6 {[%emt 0:04:44]} 17. Qe2 {[%emt 0:04:22]} Qc7 {[%emt 0:03:27]} 18. Ng4 {[%emt 0:00:50]} Be7 {[%emt 0:08:56]} 19. Nb3 {[%emt 0:02:00]} a6 {[%emt 0:06:52]} 20. Nd4 {[%emt 0:03:46]} Ne4 {[%emt 0:01:00]} 21. f5 {[%emt 0:08:23]} e5 {[%emt 0:04:34]} 22. Nxc6 {[%emt 0:10:04]} bxc6 {[%emt 0:00:15]} 23. Qxa6 {[%emt 0:06:44]} h5 {[%emt 0:00:44]} 24. f6 {[%emt 0:02:29]} Bd6 {[%emt 0:02:10]} 25. Nf2 {[%emt 0:06:08]} Nxf6 {[%emt 0:01:47]} 26. Qe2 {[%emt 0:00:29]} e4 {[%emt 0:01:34]} 27. h3 {[%emt 0:10:31]} Be5 {[%emt 0:01:48]} 28. g4 {[%emt 0:00:53]} h4 {[%emt 0:03:10]} 29. g5 {[%emt 0:00:52]} Nh7 {[%emt 0:00:11]} 30. Qg4 {[%emt 0:01:17]} f6 {[%emt 0:04:44]} 31. gxf6 {[%emt 0:01:49]} Bxf6 {[%emt 0:00:07]} 32. Nh1 {[%emt 0:02:55]} Ng5 {[%emt 0:01:25]} 33. Rxf6 {[%emt 0:05:35]} gxf6 {[%emt 0:00:58]} 34. c4 {[%emt 0:01:11]} Kf7 {[%emt 0:01:21]} 35. Rf1 {[%emt 0:03:15]} Nf3+ {[%emt 0:01:03]} 36. Rxf3 {[%emt 0:01:06]} exf3 {[%emt 0:00:57]} 37. Qh5+ {[%emt 0:00:08]} Kg8 {[%emt 0:02:58]} 38. Bxf6 {[%emt 0:01:01]} Rd7 {[%emt 0:00:46]} 39. Qh8+ {[%emt 0:01:05]} Kf7 {[%emt 0:00:09]} 40. Qxh4 {[%emt 0:02:22]} Rg8+ {[%emt 0:04:06]} 41. Bg5 {[%emt 0:03:33]} Qe5 {[%emt 0:10:28]} 42. Qh5+ {[%emt 0:13:59]} Rg6 {[%emt 0:00:20]} 43. Qxf3+ {[%emt 0:00:12]} Kg7 {[%emt 0:00:10]} 44. h4 {[%emt 0:01:09]} Rf7 {[%emt 0:04:07]} 45. Qh3 {[%emt 0:03:47]} dxc4 {[%emt 0:01:02]} 46. Ng3 {[%emt 0:00:26]} Qxe3+ {[%emt 0:00:18]} 47. Bxe3 {[%emt 0:00:12]} 1-0

[Event "106th British-ch Major 2019"]
[Site "Torquay"]
[Date "2019.07.27"]
[Round "1.35"]
[White "Rogacewicz, Mikolaj"]
[Black "Hussain, Adam"]
[Result "1-0"]
[ECO "E60"]
[WhiteElo "1925"]
[BlackElo "1515"]
[Annotator "NA"]
[PlyCount "53"]
[EventDate "2019.07.27"]
[EventType "swiss"]
[EventCountry "GBR"]
[SourceTitle "playchess.com"]
[Source "ChessBase"]
[SourceQuality "1"]
[TimeControl "40/5400+30:1800+30"]

1. d4 {[%emt 0:06:37]} Nf6 {[%emt 0:00:00]} 2. c4 {[%emt 0:00:05]} c5 {[%emt 0:00:00]} 3. d5 {[%emt 0:00:30]} b5 {[%emt 0:00:10]} 4. cxb5 {[%emt 0:00:30]} a6 {[%emt 0:00:30]} 5. bxa6 {[%emt 0:00:30]} g6 {[%emt 0:00:30]} 6. Nc3 {[%emt 0:00:30]} Bg7 {[%emt 0:00:30]} 7. Nf3 {[%emt 0:00:30]} O-O {[%emt 0:00:30]} 8. g3 {[%emt 0:00:30]} d6 {[%emt 0:00:30]} 9. Bg2 {[%emt 0:00:30]} Nxa6 {[%emt 0:00:30]} 10. O-O {[%emt 0:00:30]} Qc7 {[%emt 0:00:30]} 11. h3 {[%emt 0:00:30]} Bb7 {[%emt 0:00:30]} 12. Nd2 {[%emt 0:00:30]} Rfb8 {[%emt 0:00:30]} 13. Nc4 {[%emt 0:00:30]} Nd7 {[%emt 0:00:30]} 14. Bg5 {[%emt 0:00:30]} Nb6 {[%emt 0:00:30]} 15. Nb5 {[%emt 0:00:30]} Qd8 {[%emt 0:00:30]} 16. Nbxd6 {[%emt 0:00:30]} Nxc4 {[%emt 0:00:30]} 17. Nxc4 {[%emt 0:00:30]} Nb4 {[%emt 0:00:30]} 18. d6 {[%emt 0:00:30]} Bxg2 {[%emt 0:00:30]} 19. Bxe7 {[%emt 0:00:30]} Bxf1 {[%emt 0:00:30]} 20. Bxd8 {[%emt 0:00:30]} Bxe2 {[%emt 0:00:30]} 21. Qxe2 {[%emt 0:48:10]} Rxd8 {[%emt 0:25:18]} 22. d7 {[%emt 0:08:50]} Nxa2 {[%emt 0:02:02]} 23. Rxa2 {[%emt 0:00:30]} Rxa2 {[%emt 0:00:30]} 24. Qe8+ {[%emt 0:00:04]} Rxe8 {[%emt 0:00:49]} 25. dxe8=Q+ {[%emt 0:00:17]} Bf8 {[%emt 0:00:01]} 26. Ne5 {[%emt 0:00:30]} Ra7 {[%emt 0:00:30]} 27. Nd7 {[%emt 0:00:30]} 1-0